fUSD/lending_fUSD_20260610
["ID","MTS","AMOUNT","RATE_DAILY","PERIOD"]
[424644528,1781027445000,-1785.04775635,0.00025,2]
[424644522,1781027445000,-200.0,0.00024903,2]
[424644526,1781027445000,-581.0,0.00025,2]
[424644530,1781027445000,-711.19811307,0.00025,2]
[424644502,1781027445000,-621.78829552,0.0002475,2]
[424644517,1781027445000,-1694.26,0.00024773,7]
[424644503,1781027445000,-151.0,0.0002475,2]
[424644489,1781027445000,-158.0,0.00024342,2]
[424644505,1781027445000,-232.5697443,0.00024752,2]
[424644534,1781027445000,-573.5011041,0.00025,2]
[424644484,1781027445000,-419.0,0.00024293,2]
[424644479,1781027445000,-1358.0,0.00024293,2]
[424644483,1781027445000,-933.0,0.00024293,2]
[424644480,1781027445000,-1274.0,0.00024293,2]
[424644478,1781027445000,-165.404,0.00024293,2]
[424644481,1781027445000,-400.0,0.00024293,2]
[424644482,1781027445000,-1227.0,0.00024293,2]
[424644486,1781027445000,-251.0,0.00024311,2]
[424644487,1781027445000,-1375.9,0.00024324,2]
[424644488,1781027445000,-8092.0,0.00024342,2]
[424644490,1781027445000,-500.0,0.00024362,2]
[424644492,1781027445000,-659.66411633,0.00024651,2]
[424644494,1781027445000,-1000.0,0.00024658,2]
[424644495,1781027445000,-771.84,0.00024658,2]
[424644496,1781027445000,-19856.61342644,0.00024668,2]
[424644493,1781027445000,-306.88,0.00024658,8]
[424644491,1781027445000,-288.0,0.00024502,30]
[424644498,1781027445000,-316.0,0.000247,2]
[424644508,1781027445000,-2054.15682156,0.00024752,2]
[424644497,1781027445000,-1000.0,0.000247,2]
[424644504,1781027445000,-340.68333663,0.0002475,2]
[424644501,1781027445000,-483070.05464834,0.00024704,2]
[424644500,1781027445000,-309.0,0.000247,2]
[424644499,1781027445000,-888.0,0.000247,2]
[424644507,1781027445000,-251.11897888,0.00024752,2]
[424644538,1781027445000,-319.0,0.00025,2]
[424644485,1781027445000,-150.0,0.00024311,2]
[424644540,1781027445000,-285.63,0.00025,2]
[424644568,1781027445000,-550.0,0.00025112,2]
[424644578,1781027445000,-150.0,0.00025273,2]
[424644567,1781027445000,-550.0,0.00025112,2]
[424644575,1781027445000,-150.0,0.00025273,2]
[424644571,1781027445000,-550.0,0.00025112,2]
[424644574,1781027445000,-365.98504307,0.00025238,2]
[424644569,1781027445000,-550.0,0.00025112,2]
[424644572,1781027445000,-550.0,0.00025112,2]
[424644570,1781027445000,-550.0,0.00025112,2]
[424644573,1781027445000,-526.0,0.00025112,2]
[424644576,1781027445000,-150.0,0.00025273,2]
[424644577,1781027445000,-150.0,0.00025273,2]
[424644565,1781027445000,-550.0,0.00025112,2]
[424644581,1781027445000,-260.4103811,0.000253,2]
[424644582,1781027445000,-500.0,0.00025472,30]
[424644587,1781027445000,-156.27394493,0.00025785,2]
[424644583,1781027445000,-502.765,0.00025472,30]
[424644584,1781027445000,-738.01,0.00025644,2]
[424644585,1781027445000,-200.0,0.00025676,2]
[424644580,1781027445000,-154.6875,0.000253,2]
[424644589,1781027445000,-20508.29,0.00025786,2]
[424644588,1781027445000,-468.85,0.00025786,2]
[424644586,1781027445000,-213.0,0.00025746,30]
[424644590,1781027445000,-1255.79,0.00025786,2]
[424644592,1781027445000,-15485.84,0.00025786,2]
[424644543,1781027445000,-300.0,0.00025075,7]
[424644579,1781027445000,-227.0,0.00025273,2]
[424644563,1781027445000,-500.0,0.00025093,2]
[424644591,1781027445000,-1864.76,0.00025786,2]
[424644566,1781027445000,-550.0,0.00025112,2]
[424644559,1781027445000,-400.0,0.00025083,7]
[424644541,1781027445000,-300.0,0.00025075,7]
[424644533,1781027445000,-732.35498657,0.00025,2]
[424644536,1781027445000,-628.0,0.00025,2]
[424644537,1781027445000,-1170.0,0.00025,2]
[424644539,1781027445000,-70365.91848467,0.00025,2]
[424644542,1781027445000,-300.0,0.00025075,7]
[424644555,1781027445000,-400.0,0.00025083,7]
[424644545,1781027445000,-300.0,0.00025075,7]
[424644552,1781027445000,-159.0,0.00025075,7]
[424644549,1781027445000,-289.0,0.00025075,7]
[424644547,1781027445000,-300.0,0.00025075,7]
[424644546,1781027445000,-300.0,0.00025075,7]
[424644535,1781027445000,-2920.0,0.00025,2]
[424644548,1781027445000,-300.0,0.00025075,7]
[424644544,1781027445000,-300.0,0.00025075,7]
[424644558,1781027445000,-400.0,0.00025083,7]
[424644560,1781027445000,-400.0,0.00025083,7]
[424644561,1781027445000,-450.0,0.00025083,7]
[424644562,1781027445000,-5083.88,0.00025089,7]
[424644557,1781027445000,-400.0,0.00025083,7]
[424644556,1781027445000,-400.0,0.00025083,7]
[424644554,1781027445000,-400.0,0.00025083,7]
[424644551,1781027445000,-214.0,0.00025075,7]
[424644553,1781027445000,-400.0,0.00025083,7]
[424644550,1781027445000,-289.0,0.00025075,7]
[424644564,1781027445000,-550.0,0.00025112,2]
[424644627,1781027446000,-306.73635159,0.00026384,2]
[424644629,1781027446000,-280.03725111,0.00026396,2]
[424644630,1781027446000,-5530.0,0.000264,5]
[424644626,1781027446000,-199.64334801,0.00026384,2]
[424644625,1781027446000,-1375.9,0.00026296,2]
[424644616,1781027446000,-150.0,0.00026027,7]
[424644618,1781027446000,-150.0,0.00026027,7]
[424644631,1781027446000,-2000.0,0.00026417,7]
[424644624,1781027446000,-174.34176673,0.00026119,2]
[424644628,1781027446000,-350.55583039,0.00026384,2]
[424644623,1781027446000,-435.85441684,0.00026119,2]
[424644636,1781027446000,-650.8,0.000268,7]
[424644635,1781027446000,-5083.88,0.00026783,7]
[424644637,1781027446000,-466.3145752,0.00026803,2]
[424644633,1781027446000,-500.0,0.00026621,2]
[424644634,1781027446000,-152.0,0.0002672,5]
[424644639,1781027446000,-2000.0,0.00026811,2]
[424644641,1781027446000,-2000.0,0.00026811,2]
[424644640,1781027446000,-2000.0,0.00026811,2]
[424644649,1781027446000,-2000.0,0.00026811,2]
[424644642,1781027446000,-2000.0,0.00026811,2]
[424644638,1781027446000,-186.52583008,0.00026803,2]
[424644617,1781027446000,-150.0,0.00026027,7]
[424644643,1781027446000,-2000.0,0.00026811,2]
[424644632,1781027446000,-200.0,0.00026449,2]
[424644621,1781027446000,-237.0,0.00026081,2]
[424644604,1781027446000,-191.0,0.00026027,7]
[424644622,1781027446000,-659.66411633,0.000261,2]
[424644647,1781027446000,-2000.0,0.00026811,2]
[424644594,1781027446000,-200.0,0.00025827,2]
[424644593,1781027446000,-5530.0,0.000258,3]
[424644595,1781027446000,-193.23462507,0.00025827,2]
[424644596,1781027446000,-500.0,0.00025845,2]
[424644600,1781027446000,-285.0,0.00025928,2]
[424644599,1781027446000,-171.3583486,0.00025928,2]
[424644598,1781027446000,-270.0455652,0.00025848,2]
[424644597,1781027446000,-154.6875,0.00025848,2]
[424644601,1781027446000,-7732.11304072,0.00026,10]
[424644602,1781027446000,-400.12,0.00026027,7]
[424644620,1781027446000,-10116.0,0.00026081,2]
[424644606,1781027446000,-350.0,0.00026027,7]
[424644607,1781027446000,-350.0,0.00026027,7]
[424644603,1781027446000,-234.27,0.00026027,7]
[424644612,1781027446000,-350.0,0.00026027,7]
[424644609,1781027446000,-350.0,0.00026027,7]
[424644611,1781027446000,-350.0,0.00026027,7]
[424644605,1781027446000,-350.0,0.00026027,7]
[424644610,1781027446000,-350.0,0.00026027,7]
[424644614,1781027446000,-173.0,0.00026027,7]
[424644613,1781027446000,-350.0,0.00026027,7]
[424644615,1781027446000,-192.0,0.00026027,7]
[424644619,1781027446000,-244.0,0.00026027,7]
[424644608,1781027446000,-350.0,0.00026027,7]
[424644646,1781027446000,-2000.0,0.00026811,2]
[424644648,1781027446000,-2000.0,0.00026811,2]
[424644644,1781027446000,-2000.0,0.00026811,2]
[424644675,1781027446000,-1000.0,0.00026838,2]
[424644682,1781027446000,-2000.0,0.00026838,2]
[424644680,1781027446000,-2000.0,0.00026838,2]
[424644681,1781027446000,-1000.0,0.00026838,2]
[424644676,1781027446000,-2000.0,0.00026838,2]
[424644683,1781027446000,-1000.0,0.00026838,2]
[424644679,1781027446000,-1000.0,0.00026838,2]
[424644697,1781027446000,-1000.0,0.00026838,2]
[424644696,1781027446000,-1000.0,0.00026838,2]
[424644686,1781027446000,-2000.0,0.00026838,2]
[424644687,1781027446000,-1000.0,0.00026838,2]
[424644684,1781027446000,-2000.0,0.00026838,2]
[424644689,1781027446000,-1000.0,0.00026838,2]
[424644691,1781027446000,-2000.0,0.00026838,2]
[424644690,1781027446000,-1000.0,0.00026838,2]
[424644693,1781027446000,-2000.0,0.00026838,2]
[424644692,1781027446000,-1000.0,0.00026838,2]
[424644695,1781027446000,-2000.0,0.00026838,2]
[424644694,1781027446000,-1000.0,0.00026838,2]
[424644698,1781027446000,-2000.0,0.00026838,2]
[424644700,1781027446000,-1000.0,0.00026838,2]
[424644699,1781027446000,-2000.0,0.00026838,2]
[424644703,1781027446000,-1000.0,0.00026838,2]
[424644701,1781027446000,-2000.0,0.00026838,2]
[424644688,1781027446000,-2000.0,0.00026838,2]
[424644678,1781027446000,-2000.0,0.00026838,2]
[424644685,1781027446000,-1000.0,0.00026838,2]
[424644673,1781027446000,-1000.0,0.00026838,2]
[424644677,1781027446000,-1000.0,0.00026838,2]
[424644651,1781027446000,-2000.0,0.00026811,2]
[424644650,1781027446000,-2000.0,0.00026811,2]
[424644657,1781027446000,-1000.0,0.00026838,2]
[424644652,1781027446000,-2000.0,0.00026811,2]
[424644660,1781027446000,-1000.0,0.00026838,2]
[424644654,1781027446000,-708.01,0.00026811,2]
[424644658,1781027446000,-1000.0,0.00026838,2]
[424644661,1781027446000,-1000.0,0.00026838,2]
[424644653,1781027446000,-2000.0,0.00026811,2]
[424644655,1781027446000,-243.67755496,0.00026811,2]
[424644656,1781027446000,-1000.0,0.00026838,2]
[424644659,1781027446000,-1000.0,0.00026838,2]
[424644645,1781027446000,-2000.0,0.00026811,2]
[424644665,1781027446000,-1000.0,0.00026838,2]
[424644662,1781027446000,-1000.0,0.00026838,2]
[424644664,1781027446000,-1000.0,0.00026838,2]
[424644670,1781027446000,-2000.0,0.00026838,2]
[424644669,1781027446000,-1000.0,0.00026838,2]
[424644672,1781027446000,-2000.0,0.00026838,2]
[424644667,1781027446000,-1000.0,0.00026838,2]
[424644666,1781027446000,-1000.0,0.00026838,2]
[424644663,1781027446000,-1000.0,0.00026838,2]
[424644668,1781027446000,-2000.0,0.00026838,2]
[424644671,1781027446000,-2000.0,0.00026838,2]
[424644674,1781027446000,-2000.0,0.00026838,2]
[424644741,1781027447000,-500.0,0.00027242,2]
[424644725,1781027447000,-150.0,0.00027099,4]
[424644746,1781027447000,-500.0,0.00027242,2]
[424644737,1781027447000,-500.0,0.00027242,2]
[424644740,1781027447000,-500.0,0.00027242,2]
[424644736,1781027447000,-500.0,0.00027242,2]
[424644742,1781027447000,-500.0,0.00027242,2]
[424644738,1781027447000,-500.0,0.00027242,2]
[424644747,1781027447000,-500.0,0.00027242,2]
[424644739,1781027447000,-500.0,0.00027242,2]
[424644745,1781027447000,-500.0,0.00027242,2]
[424644735,1781027447000,-500.0,0.00027242,2]
[424644743,1781027447000,-500.0,0.00027242,2]
[424644758,1781027447000,-500.0,0.00027242,2]
[424644749,1781027447000,-500.0,0.00027242,2]
[424644748,1781027447000,-500.0,0.00027242,2]
[424644757,1781027447000,-500.0,0.00027242,2]
[424644759,1781027447000,-500.0,0.00027242,2]
[424644754,1781027447000,-500.0,0.00027242,2]
[424644750,1781027447000,-500.0,0.00027242,2]
[424644751,1781027447000,-500.0,0.00027242,2]
[424644752,1781027447000,-500.0,0.00027242,2]
[424644755,1781027447000,-500.0,0.00027242,2]
[424644760,1781027447000,-500.0,0.00027242,2]
[424644753,1781027447000,-500.0,0.00027242,2]
[424644744,1781027447000,-500.0,0.00027242,2]
[424644726,1781027447000,-854.0,0.00027137,2]
[424644705,1781027447000,-2000.0,0.00026838,2]
[424644730,1781027447000,-584.7,0.000272,7]
[424644756,1781027447000,-500.0,0.00027242,2]
[424644707,1781027447000,-2000.0,0.00026838,2]
[424644708,1781027447000,-1000.0,0.00026838,2]
[424644706,1781027447000,-1000.0,0.00026838,2]
[424644709,1781027447000,-1433.2,0.00026838,2]
[424644711,1781027447000,-1000.0,0.00026838,2]
[424644710,1781027447000,-1000.0,0.00026838,2]
[424644712,1781027447000,-1000.0,0.00026838,2]
[424644715,1781027447000,-1000.0,0.00026838,2]
[424644717,1781027447000,-1000.0,0.00026838,2]
[424644716,1781027447000,-1000.0,0.00026838,2]
[424644714,1781027447000,-1000.0,0.00026838,2]
[424644732,1781027447000,-500.0,0.00027242,2]
[424644719,1781027447000,-1000.0,0.00026838,2]
[424644720,1781027447000,-164.36,0.00026838,2]
[424644713,1781027447000,-1000.0,0.00026838,2]
[424644722,1781027447000,-290.3986294,0.00026944,2]
[424644723,1781027447000,-394.0,0.00027091,7]
[424644721,1781027447000,-1200.0,0.000269,9]
[424644734,1781027447000,-500.0,0.00027242,2]
[424644728,1781027447000,-580.44,0.000272,7]
[424644731,1781027447000,-200.0,0.00027222,2]
[424644733,1781027447000,-500.0,0.00027242,2]
[424644724,1781027447000,-150.00000076,0.00027099,4]
[424644727,1781027447000,-834.96,0.000272,7]
[424644729,1781027447000,-602.36,0.000272,7]
[424644718,1781027447000,-1000.0,0.00026838,2]
[424644762,1781027447000,-500.0,0.00027242,2]
[424644818,1781027447000,-207.30775462,0.00027397,30]
[424644761,1781027447000,-500.0,0.00027242,2]
[424644793,1781027447000,-500.0,0.00027242,2]
[424644791,1781027447000,-500.0,0.00027242,2]
[424644795,1781027447000,-617.0,0.00027242,2]
[424644789,1781027447000,-500.0,0.00027242,2]
[424644809,1781027447000,-261.5126501,0.00027397,30]
[424644799,1781027447000,-4921.53798047,0.00027242,2]
[424644798,1781027447000,-669.5127661,0.00027242,2]
[424644800,1781027447000,-10266.73105246,0.00027242,2]
[424644802,1781027447000,-1358.0,0.00027293,2]
[424644804,1781027447000,-382.0,0.00027293,2]
[424644801,1781027447000,-3555.0,0.00027293,2]
[424644803,1781027447000,-1274.0,0.00027293,2]
[424644788,1781027447000,-500.0,0.00027242,2]
[424644807,1781027447000,-419.0,0.00027293,2]
[424644806,1781027447000,-933.0,0.00027293,2]
[424644811,1781027447000,-1500.0,0.00027397,2]
[424644812,1781027447000,-306.88,0.00027397,31]
[424644815,1781027447000,-771.84,0.00027397,2]
[424644817,1781027447000,-27984.79,0.00027397,10]
[424644816,1781027447000,-33581.75,0.00027397,10]
[424644813,1781027447000,-1000.0,0.00027397,20]
[424644810,1781027447000,-166.6875,0.00027397,2]
[424644820,1781027447000,-10230.44,0.000274,14]
[424644814,1781027447000,-300.0,0.00027397,2]
[424644772,1781027447000,-500.0,0.00027242,2]
[424644819,1781027447000,-1006.66,0.000274,7]
[424644808,1781027447000,-1154.73,0.00027397,2]
[424644790,1781027447000,-500.0,0.00027242,2]
[424644805,1781027447000,-1227.0,0.00027293,2]
[424644797,1781027447000,-516.0,0.00027242,2]
[424644766,1781027447000,-500.0,0.00027242,2]
[424644796,1781027447000,-500.0,0.00027242,2]
[424644764,1781027447000,-500.0,0.00027242,2]
[424644767,1781027447000,-500.0,0.00027242,2]
[424644769,1781027447000,-500.0,0.00027242,2]
[424644771,1781027447000,-500.0,0.00027242,2]
[424644765,1781027447000,-500.0,0.00027242,2]
[424644768,1781027447000,-500.0,0.00027242,2]
[424644770,1781027447000,-500.0,0.00027242,2]
[424644774,1781027447000,-500.0,0.00027242,2]
[424644784,1781027447000,-500.0,0.00027242,2]
[424644773,1781027447000,-500.0,0.00027242,2]
[424644775,1781027447000,-500.0,0.00027242,2]
[424644763,1781027447000,-500.0,0.00027242,2]
[424644783,1781027447000,-500.0,0.00027242,2]
[424644781,1781027447000,-500.0,0.00027242,2]
[424644794,1781027447000,-500.0,0.00027242,2]
[424644786,1781027447000,-500.0,0.00027242,2]
[424644787,1781027447000,-500.0,0.00027242,2]
[424644785,1781027447000,-500.0,0.00027242,2]
[424644782,1781027447000,-500.0,0.00027242,2]
[424644792,1781027447000,-500.0,0.00027242,2]
[424644776,1781027447000,-500.0,0.00027242,2]
[424644779,1781027447000,-500.0,0.00027242,2]
[424644777,1781027447000,-500.0,0.00027242,2]
[424644778,1781027447000,-500.0,0.00027242,2]
[424644780,1781027447000,-500.0,0.00027242,2]
[424644867,1781027448000,-182.34670355,0.00027666,2]
[424644868,1781027448000,-184.53525621,0.00027666,2]
[424644866,1781027448000,-208.75109454,0.00027666,2]
[424644846,1781027448000,-172.76001064,0.00027638,2]
[424644858,1781027448000,-155.39059226,0.00027656,2]
[424644854,1781027448000,-165.46707484,0.00027656,2]
[424644852,1781027448000,-183.30457194,0.00027638,2]
[424644850,1781027448000,-201.27003366,0.00027638,2]
[424644860,1781027448000,-397.06035287,0.00027656,2]
[424644851,1781027448000,-176.67791395,0.00027638,2]
[424644853,1781027448000,-223.89124233,0.00027638,2]
[424644857,1781027448000,-201.46594709,0.00027656,2]
[424644872,1781027448000,-199.00356349,0.00027694,2]
[424644864,1781027448000,-155.65649703,0.00027666,2]
[424644865,1781027448000,-218.2486721,0.00027666,2]
[424644861,1781027448000,-216.46823671,0.00027656,2]
[424644862,1781027448000,-158.62036591,0.00027656,2]
[424644863,1781027448000,-185.2708155,0.00027666,2]
[424644873,1781027448000,-417.21253054,0.00027694,2]
[424644870,1781027448000,-152.25058931,0.00027694,2]
[424644871,1781027448000,-455.24091537,0.00027694,2]
[424644869,1781027448000,-854.0,0.00027671,2]
[424644874,1781027448000,-173.13631141,0.00027694,2]
[424644875,1781027448000,-151.35609371,0.00027694,2]
[424644847,1781027448000,-168.42469505,0.00027638,2]
[424644859,1781027448000,-341.81430409,0.00027656,2]
[424644849,1781027448000,-180.99861386,0.00027638,2]
[424644822,1781027448000,-5214.4,0.000274,2]
[424644844,1781027448000,-198.61518839,0.00027638,2]
[424644879,1781027448000,-153.96155818,0.00027694,2]
[424644832,1781027448000,-1694.26,0.00027546,7]
[424644825,1781027448000,-5214.4,0.000274,2]
[424644823,1781027448000,-5214.4,0.000274,2]
[424644824,1781027448000,-5214.4,0.000274,2]
[424644821,1781027448000,-1121.71,0.000274,7]
[424644827,1781027448000,-500.0,0.00027419,14]
[424644826,1781027448000,-5214.4,0.000274,2]
[424644829,1781027448000,-151.0,0.00027489,2]
[424644831,1781027448000,-500.0,0.000275,7]
[424644828,1781027448000,-644.79446245,0.00027489,2]
[424644830,1781027448000,-301.14337869,0.00027492,2]
[424644848,1781027448000,-192.96027103,0.00027638,2]
[424644833,1781027448000,-659.66411633,0.0002755,2]
[424644835,1781027448000,-183.74509809,0.00027638,2]
[424644837,1781027448000,-151.4721375,0.00027638,2]
[424644839,1781027448000,-185.81413278,0.00027638,2]
[424644838,1781027448000,-189.79108403,0.00027638,2]
[424644834,1781027448000,-166.18215946,0.00027638,2]
[424644840,1781027448000,-179.71394717,0.00027638,2]
[424644842,1781027448000,-184.12889858,0.00027638,2]
[424644841,1781027448000,-245.17161151,0.00027638,2]
[424644843,1781027448000,-208.11918612,0.00027638,2]
[424644845,1781027448000,-160.60664122,0.00027638,2]
[424644856,1781027448000,-210.71825657,0.00027656,2]
[424644855,1781027448000,-181.29131328,0.00027656,2]
[424644836,1781027448000,-199.13510522,0.00027638,2]
[424644878,1781027448000,-188.37018351,0.00027694,2]
[424644877,1781027448000,-176.29711153,0.00027694,2]
[424644880,1781027448000,-152.55614407,0.00027694,2]
[424644910,1781027448000,-1000.0,0.00027735,2]
[424644908,1781027448000,-1000.0,0.00027735,2]
[424644914,1781027448000,-1000.0,0.00027735,2]
[424644915,1781027448000,-1000.0,0.00027735,2]
[424644919,1781027448000,-1000.0,0.00027735,2]
[424644925,1781027448000,-1121.71,0.000278,7]
[424644918,1781027448000,-1000.0,0.00027735,2]
[424644924,1781027448000,-151.81,0.00027735,2]
[424644922,1781027448000,-1000.0,0.00027735,2]
[424644916,1781027448000,-1000.0,0.00027735,2]
[424644920,1781027448000,-1000.0,0.00027735,2]
[424644921,1781027448000,-1000.0,0.00027735,2]
[424644909,1781027448000,-1000.0,0.00027735,2]
[424644917,1781027448000,-1000.0,0.00027735,2]
[424644926,1781027448000,-441.0,0.00027818,2]
[424644937,1781027448000,-2000.0,0.00028,2]
[424644928,1781027448000,-10116.0,0.00027819,10]
[424644931,1781027448000,-10230.44,0.000279,14]
[424644930,1781027448000,-1006.66,0.000279,7]
[424644929,1781027448000,-317.0,0.0002782,2]
[424644932,1781027448000,-2000.0,0.00027926,7]
[424644935,1781027448000,-200.0,0.00027994,2]
[424644936,1781027448000,-2657.0,0.00028,2]
[424644934,1781027448000,-166.6875,0.00027945,2]
[424644933,1781027448000,-157.52545618,0.00027945,2]
[424644876,1781027448000,-214.684019,0.00027694,2]
[424644927,1781027448000,-452.0,0.00027818,2]
[424644913,1781027448000,-1000.0,0.00027735,2]
[424644923,1781027448000,-1000.0,0.00027735,2]
[424644904,1781027448000,-2000.0,0.00027735,2]
[424644882,1781027448000,-156.88204324,0.00027694,2]
[424644912,1781027448000,-1000.0,0.00027735,2]
[424644891,1781027448000,-2000.0,0.00027709,2]
[424644885,1781027448000,-196.81226789,0.00027694,2]
[424644888,1781027448000,-228.41274607,0.00027694,2]
[424644890,1781027448000,-158.38869344,0.00027694,2]
[424644884,1781027448000,-155.98059895,0.00027694,2]
[424644881,1781027448000,-211.51750935,0.00027694,2]
[424644887,1781027448000,-204.40939465,0.00027694,2]
[424644889,1781027448000,-150.55467094,0.00027694,2]
[424644883,1781027448000,-203.45420837,0.00027694,2]
[424644893,1781027448000,-2000.0,0.00027709,2]
[424644901,1781027448000,-2000.0,0.00027735,2]
[424644900,1781027448000,-2000.0,0.00027735,2]
[424644886,1781027448000,-156.48674443,0.00027694,2]
[424644905,1781027448000,-2000.0,0.00027735,2]
[424644902,1781027448000,-2000.0,0.00027735,2]
[424644907,1781027448000,-1000.0,0.00027735,2]
[424644906,1781027448000,-1263.83,0.00027735,2]
[424644903,1781027448000,-2000.0,0.00027735,2]
[424644911,1781027448000,-1000.0,0.00027735,2]
[424644898,1781027448000,-2000.0,0.00027735,2]
[424644897,1781027448000,-795.0,0.00027709,2]
[424644896,1781027448000,-2000.0,0.00027709,2]
[424644895,1781027448000,-2000.0,0.00027709,2]
[424644892,1781027448000,-2000.0,0.00027709,2]
[424644894,1781027448000,-2000.0,0.00027709,2]
[424644899,1781027448000,-2000.0,0.00027735,2]
[424644981,1781027449000,-854.0,0.00028739,3]
[424644979,1781027449000,-2244.85,0.00028725,2]
[424644975,1781027449000,-2249.82,0.00028661,7]
[424644972,1781027449000,-2249.82,0.0002863,2]
[424644974,1781027449000,-2244.85,0.00028661,7]
[424644970,1781027449000,-4617.73,0.0002863,30]
[424644973,1781027449000,-11455.16,0.0002863,30]
[424644971,1781027449000,-2244.85,0.0002863,2]
[424644977,1781027449000,-2249.82,0.00028693,30]
[424644969,1781027449000,-3147.51,0.0002863,30]
[424644980,1781027449000,-2249.82,0.00028725,2]
[424644976,1781027449000,-2244.85,0.00028693,30]
[424644989,1781027449000,-4651.41,0.00028797,7]
[424644992,1781027449000,-3147.51,0.00028797,7]
[424644982,1781027449000,-2244.85,0.00028756,7]
[424644990,1781027449000,-3157.41,0.00028797,7]
[424644984,1781027449000,-200.0,0.00028767,2]
[424644987,1781027449000,-2244.85,0.00028788,30]
[424644988,1781027449000,-2249.82,0.00028788,30]
[424644985,1781027449000,-217.55092658,0.00028767,2]
[424644986,1781027449000,-500.0,0.00028767,2]
[424645002,1781027449000,-1500000.0,0.0002887,2]
[424645001,1781027449000,-150.0,0.00028855,2]
[424644993,1781027449000,-4617.73,0.00028797,7]
[424644991,1781027449000,-11491.22,0.00028797,7]
[424644966,1781027449000,-4651.41,0.0002863,30]
[424644983,1781027449000,-2249.82,0.00028756,7]
[424644968,1781027449000,-11491.22,0.0002863,30]
[424644938,1781027449000,-17891.31,0.00028,2]
[424644967,1781027449000,-3157.41,0.0002863,30]
[424645003,1781027449000,-2244.85,0.00028883,30]
[424644940,1781027449000,-563.02,0.00028016,7]
[424644951,1781027449000,-150.0,0.00028229,7]
[424644950,1781027449000,-150.0,0.00028229,7]
[424644948,1781027449000,-150.0,0.00028229,7]
[424644944,1781027449000,-180.25229929,0.00028189,2]
[424644943,1781027449000,-150.0,0.00028102,7]
[424644942,1781027449000,-567.16,0.00028016,7]
[424644941,1781027449000,-584.29,0.00028016,7]
[424644946,1781027449000,-150.0,0.00028229,7]
[424644949,1781027449000,-150.0,0.00028229,7]
[424644945,1781027449000,-854.0,0.00028205,3]
[424644947,1781027449000,-150.0,0.00028229,7]
[424644952,1781027449000,-1375.9,0.00028267,2]
[424644954,1781027449000,-544.0,0.00028306,7]
[424644953,1781027449000,-1121.71,0.000283,7]
[424644960,1781027449000,-1006.66,0.000285,7]
[424644958,1781027449000,-166.6875,0.00028493,2]
[424644962,1781027449000,-650.8,0.000285,7]
[424644961,1781027449000,-10230.44,0.000285,14]
[424644957,1781027449000,-5083.88,0.00028476,7]
[424644955,1781027449000,-213.98,0.000284,2]
[424644959,1781027449000,-203.32502393,0.00028497,14]
[424644956,1781027449000,-152.0,0.00028444,6]
[424644964,1781027449000,-5568.94,0.0002863,30]
[424644963,1781027449000,-482.30328528,0.00028527,2]
[424644965,1781027449000,-542.98,0.0002863,2]
[424644978,1781027449000,-1121.71,0.000287,7]
[424644994,1781027449000,-11455.16,0.00028797,7]
[424644939,1781027449000,-809.91,0.00028016,7]
[424644996,1781027449000,-2249.82,0.0002882,2]
[424645028,1781027449000,-416.23837224,0.00028941,2]